[Event "Titled Tuesday Blitz June 28 Early 2022"]
[White "Orlov, Georgi"]
[Black "Samsonkin, Artiom"]
[WhiteFideId "2011271"]
[BlackFideId "13503111"]
[WhiteElo "2575"]
[BlackElo "2513"]
[Result "1-0"]
[Round "11"]
[TimeControl "180+1"]
[Date "2022.06.28"]
[WhiteClock "0:00:12"]
[BlackClock "0:00:04"]

1. d4 {[%clk 0:03:00]}  d5 {[%clk 0:02:57]} 2. Nf3 {[%clk 0:02:59]}  Nf6 {[%clk 0:02:57]} 3. Bf4 {[%clk 0:02:57]}  c5 {[%clk 0:02:45]} 4. e3 {[%clk 0:02:57]}  Nc6 {[%clk 0:02:46]} 5. Bb5 {[%clk 0:02:50]}  Qb6 {[%clk 0:02:37]} 6. Nc3 {[%clk 0:02:47]}  a6 {[%clk 0:02:27]} 7. Bxc6+ {[%clk 0:02:46]}  bxc6 {[%clk 0:02:25]} 8. Na4 {[%clk 0:02:40]}  Qa5+ {[%clk 0:02:18]} 9. c3 {[%clk 0:02:40]}  Ne4 {[%clk 0:02:04]} 10. Ne5 {[%clk 0:02:08]}  f6 {[%clk 0:01:36]} 11. Qh5+ {[%clk 0:01:43]}  g6 {[%clk 0:01:31]} 12. Nxg6 {[%clk 0:01:43]}  hxg6 {[%clk 0:01:20]} 13. Qxh8 {[%clk 0:01:43]}  g5 {[%clk 0:01:20]} 14. Qh5+ {[%clk 0:01:34]}  Kd7 {[%clk 0:01:11]} 15. Nxc5+ {[%clk 0:01:00]}  Nxc5 {[%clk 0:01:09]} 16. dxc5 {[%clk 0:01:01]}  gxf4 {[%clk 0:01:07]} 17. Qg4+ {[%clk 0:00:55]}  Kc7 {[%clk 0:00:36]} 18. Qxf4+ {[%clk 0:00:54]}  e5 {[%clk 0:00:37]} 19. Qxf6 {[%clk 0:00:53]}  Qxc5 {[%clk 0:00:37]} 20. Qxe5+ {[%clk 0:00:51]}  Bd6 {[%clk 0:00:37]} 21. Qd4 {[%clk 0:00:51]}  Qb5 {[%clk 0:00:36]} 22. O-O-O {[%clk 0:00:43]}  Rb8 {[%clk 0:00:33]} 23. b3 {[%clk 0:00:43]}  Bf5 {[%clk 0:00:32]} 24. Qg7+ {[%clk 0:00:37]}  Kb6 {[%clk 0:00:28]} 25. Qd4+ {[%clk 0:00:25]}  Kb7 {[%clk 0:00:17]} 26. Kb2 {[%clk 0:00:21]}  Ka8 {[%clk 0:00:16]} 27. Ka1 {[%clk 0:00:16]}  Re8 {[%clk 0:00:12]} 28. Qd2 {[%clk 0:00:14]}  Be5 {[%clk 0:00:12]} 29. Rc1 {[%clk 0:00:14]}  a5 {[%clk 0:00:11]} 30. f3 {[%clk 0:00:13]}  a4 {[%clk 0:00:11]} 31. bxa4 {[%clk 0:00:13]}  Qxa4 {[%clk 0:00:11]} 32. g4 {[%clk 0:00:13]}  Bh7 {[%clk 0:00:10]} 33. Rcd1 {[%clk 0:00:11]}  Qa3 {[%clk 0:00:09]} 34. Rc1 {[%clk 0:00:11]}  Rb8 {[%clk 0:00:08]} 35. f4 {[%clk 0:00:12]}  Bh8 {[%clk 0:00:07]} 36. f5 {[%clk 0:00:12]}  Rb7 {[%clk 0:00:06]} 37. Rc2 {[%clk 0:00:12]}  c5 {[%clk 0:00:06]} 38. Rhc1 {[%clk 0:00:12]}  d4 {[%clk 0:00:07]} 39. exd4 {[%clk 0:00:12]}  cxd4 {[%clk 0:00:07]} 40. cxd4 {[%clk 0:00:12]}  Bg8 {[%clk 0:00:05]} 41. Rb2 {[%clk 0:00:11]}  Rxb2 {[%clk 0:00:01]} 42. Qxb2 {[%clk 0:00:11]}  Qxb2+ {[%clk 0:00:02]} 43. Kxb2 {[%clk 0:00:12]}  Bxd4+ {[%clk 0:00:03]} 44. Kb1 {[%clk 0:00:12]}  Bd5 {[%clk 0:00:02]} 45. Rd1 {[%clk 0:00:12]}  Be4+ {[%clk 0:00:03]} 46. Kc1 {[%clk 0:00:12]}  Be3+ {[%clk 0:00:03]} 47. Kb2 {[%clk 0:00:12]}  Bf3 {[%clk 0:00:03]} 48. Rd3 {[%clk 0:00:12]}  Bxg4 {[%clk 0:00:03]} 49. Rxe3 {[%clk 0:00:12]}  Bxf5 {[%clk 0:00:04]} 50. Re5 {[%clk 0:00:12]} 1-0


[Site "https://www.chess.com"]

[Event "Titled Tuesday Blitz June 28 Early 2022"]
[White "Ozdemir, Serhan Berat"]
[Black "Ismagilov, Damir"]
[WhiteFideId "6374611"]
[BlackFideId "34199982"]
[WhiteElo "1920"]
[BlackElo "2138"]
[Result "0-1"]
[Round "11"]
[TimeControl "180+1"]
[Date "2022.06.28"]
[WhiteClock "0:00:01"]
[BlackClock "0:00:25"]

1. e4 {[%clk 0:02:02]}  c5 {[%clk 0:02:58]} 2. Nf3 {[%clk 0:02:02]}  d6 {[%clk 0:02:59]} 3. d4 {[%clk 0:02:03]}  cxd4 {[%clk 0:03:00]} 4. Nxd4 {[%clk 0:02:03]}  Nf6 {[%clk 0:03:00]} 5. Nc3 {[%clk 0:02:04]}  a6 {[%clk 0:03:01]} 6. f3 {[%clk 0:02:05]}  e6 {[%clk 0:02:59]} 7. Be3 {[%clk 0:02:04]}  h5 {[%clk 0:02:58]} 8. Qd2 {[%clk 0:02:03]}  Be7 {[%clk 0:02:56]} 9. Be2 {[%clk 0:02:02]}  b5 {[%clk 0:02:51]} 10. a4 {[%clk 0:02:00]}  b4 {[%clk 0:02:50]} 11. Na2 {[%clk 0:02:00]}  d5 {[%clk 0:02:39]} 12. e5 {[%clk 0:01:54]}  Nfd7 {[%clk 0:02:39]} 13. f4 {[%clk 0:01:54]}  Nc5 {[%clk 0:02:32]} 14. O-O {[%clk 0:01:41]}  Ne4 {[%clk 0:02:30]} 15. Qe1 {[%clk 0:01:42]}  a5 {[%clk 0:02:22]} 16. c3 {[%clk 0:01:36]}  Ba6 {[%clk 0:01:46]} 17. f5 {[%clk 0:01:22]}  Qd7 {[%clk 0:01:35]} 18. fxe6 {[%clk 0:01:13]}  fxe6 {[%clk 0:01:34]} 19. Bb5 {[%clk 0:01:04]}  Bxb5 {[%clk 0:01:32]} 20. axb5 {[%clk 0:01:05]}  h4 {[%clk 0:01:07]} 21. Nxb4 {[%clk 0:01:02]}  h3 {[%clk 0:00:50]} 22. g3 {[%clk 0:01:00]}  Qb7 {[%clk 0:00:50]} 23. Nbc6 {[%clk 0:00:57]}  Nxc6 {[%clk 0:00:48]} 24. bxc6 {[%clk 0:00:54]}  Qxb2 {[%clk 0:00:49]} 25. Bf2 {[%clk 0:00:37]}  O-O {[%clk 0:00:44]} 26. Rb1 {[%clk 0:00:26]}  Qa2 {[%clk 0:00:34]} 27. c7 {[%clk 0:00:03]}  Rac8 {[%clk 0:00:30]} 28. Rb7 {[%clk 0:00:01]}  Nc5 {[%clk 0:00:25]} 0-1


[Site "https://www.chess.com"]

[Event "Titled Tuesday Blitz June 28 Early 2022"]
[White "Piesik, Piotr"]
[Black "Garcia Cuenca, Victor"]
[WhiteFideId "1136194"]
[BlackFideId "2250829"]
[WhiteElo "2247"]
[BlackElo "2317"]
[Result "1-0"]
[Round "11"]
[TimeControl "180+1"]
[Date "2022.06.28"]
[WhiteClock "0:01:22"]
[BlackClock "0:01:21"]

1. Nf3 {[%clk 0:02:56]}  d5 {[%clk 0:02:57]} 2. g3 {[%clk 0:02:56]}  c6 {[%clk 0:02:56]} 3. Bg2 {[%clk 0:02:57]}  Nf6 {[%clk 0:02:57]} 4. O-O {[%clk 0:02:57]}  Bg4 {[%clk 0:02:57]} 5. d3 {[%clk 0:02:57]}  Nbd7 {[%clk 0:02:55]} 6. Nbd2 {[%clk 0:02:57]}  e5 {[%clk 0:02:54]} 7. e4 {[%clk 0:02:57]}  dxe4 {[%clk 0:02:54]} 8. dxe4 {[%clk 0:02:57]}  Bc5 {[%clk 0:02:54]} 9. h3 {[%clk 0:02:58]}  Bh5 {[%clk 0:02:52]} 10. Qe1 {[%clk 0:02:57]}  O-O {[%clk 0:02:48]} 11. Nb3 {[%clk 0:02:57]}  Bb6 {[%clk 0:02:47]} 12. a4 {[%clk 0:02:58]}  a5 {[%clk 0:02:46]} 13. Be3 {[%clk 0:02:57]}  Bxe3 {[%clk 0:02:45]} 14. Qxe3 {[%clk 0:02:58]}  Qe7 {[%clk 0:02:45]} 15. Nfd2 {[%clk 0:02:57]}  Bg6 {[%clk 0:02:36]} 16. Rfd1 {[%clk 0:02:55]}  Rfe8 {[%clk 0:02:34]} 17. Nc4 {[%clk 0:02:49]}  Qb4 {[%clk 0:02:20]} 18. Ncd2 {[%clk 0:02:25]}  Red8 {[%clk 0:02:13]} 19. c3 {[%clk 0:02:25]}  Qe7 {[%clk 0:02:12]} 20. Nc4 {[%clk 0:02:25]}  Ne8 {[%clk 0:02:02]} 21. Ncxa5 {[%clk 0:02:18]}  Nf8 {[%clk 0:01:58]} 22. Rxd8 {[%clk 0:02:00]}  Rxd8 {[%clk 0:01:53]} 23. Nc4 {[%clk 0:02:00]}  f6 {[%clk 0:01:54]} 24. Nc5 {[%clk 0:01:53]}  Bf7 {[%clk 0:01:53]} 25. Bf1 {[%clk 0:01:53]}  Ne6 {[%clk 0:01:40]} 26. Nxe6 {[%clk 0:01:51]}  Bxe6 {[%clk 0:01:41]} 27. b4 {[%clk 0:01:49]}  Qf7 {[%clk 0:01:33]} 28. Qc5 {[%clk 0:01:39]}  Nc7 {[%clk 0:01:26]} 29. Nd6 {[%clk 0:01:30]}  Qh5 {[%clk 0:01:24]} 30. Nxb7 {[%clk 0:01:29]}  Rd1 {[%clk 0:01:20]} 31. Rxd1 {[%clk 0:01:29]}  Qxd1 {[%clk 0:01:21]} 32. Qd6 {[%clk 0:01:22]} 1-0


[Site "https://www.chess.com"]

[Event "Titled Tuesday Blitz June 28 Early 2022"]
[White "Piliczewski, Bogusz"]
[Black "Kanyamarala, Tarun"]
[WhiteFideId "1104144"]
[BlackFideId "45004714"]
[WhiteElo "1896"]
[BlackElo "2219"]
[Result "0-1"]
[Round "11"]
[TimeControl "180+1"]
[Date "2022.06.28"]
[WhiteClock "0:00:05"]
[BlackClock "0:01:31"]

1. d4 {[%clk 0:03:00]}  g6 {[%clk 0:03:00]} 2. Nf3 {[%clk 0:03:00]}  Bg7 {[%clk 0:03:01]} 3. Bf4 {[%clk 0:02:59]}  d6 {[%clk 0:02:58]} 4. h3 {[%clk 0:02:59]}  Nf6 {[%clk 0:02:58]} 5. e3 {[%clk 0:02:59]}  O-O {[%clk 0:02:59]} 6. Be2 {[%clk 0:02:59]}  Nbd7 {[%clk 0:02:58]} 7. O-O {[%clk 0:03:00]}  b6 {[%clk 0:02:58]} 8. c4 {[%clk 0:02:58]}  Bb7 {[%clk 0:02:59]} 9. Nc3 {[%clk 0:02:57]}  a6 {[%clk 0:03:00]} 10. b4 {[%clk 0:02:48]}  Re8 {[%clk 0:02:47]} 11. Rb1 {[%clk 0:02:46]}  e5 {[%clk 0:02:46]} 12. Bh2 {[%clk 0:02:40]}  h6 {[%clk 0:02:30]} 13. a4 {[%clk 0:02:34]}  exd4 {[%clk 0:02:28]} 14. exd4 {[%clk 0:02:33]}  Ne4 {[%clk 0:02:29]} 15. Nxe4 {[%clk 0:02:08]}  Bxe4 {[%clk 0:02:30]} 16. Bd3 {[%clk 0:02:07]}  Bxf3 {[%clk 0:02:22]} 17. Qxf3 {[%clk 0:02:07]}  Bxd4 {[%clk 0:02:21]} 18. Be4 {[%clk 0:02:00]}  Rb8 {[%clk 0:02:16]} 19. Bd5 {[%clk 0:01:54]}  Qf6 {[%clk 0:02:14]} 20. Bc6 {[%clk 0:01:42]}  Qxf3 {[%clk 0:02:13]} 21. gxf3 {[%clk 0:01:42]}  Re7 {[%clk 0:02:13]} 22. Rfd1 {[%clk 0:01:38]}  Be5 {[%clk 0:02:12]} 23. Bxd7 {[%clk 0:01:37]}  Bxh2+ {[%clk 0:02:11]} 24. Kxh2 {[%clk 0:01:37]}  Rxd7 {[%clk 0:02:12]} 25. Rd5 {[%clk 0:01:32]}  Re7 {[%clk 0:02:11]} 26. Rbd1 {[%clk 0:01:25]}  Re2 {[%clk 0:02:09]} 27. Kg3 {[%clk 0:01:25]}  Ra2 {[%clk 0:02:08]} 28. a5 {[%clk 0:01:20]}  bxa5 {[%clk 0:02:08]} 29. bxa5 {[%clk 0:01:21]}  Rbb2 {[%clk 0:02:08]} 30. Rf1 {[%clk 0:01:13]}  Rc2 {[%clk 0:02:07]} 31. c5 {[%clk 0:01:09]}  Rxa5 {[%clk 0:02:06]} 32. Rfd1 {[%clk 0:00:56]}  Raxc5 {[%clk 0:02:05]} 33. R5d4 {[%clk 0:00:53]}  a5 {[%clk 0:02:01]} 34. Ra4 {[%clk 0:00:49]}  R2c4 {[%clk 0:02:01]} 35. Ra3 {[%clk 0:00:45]}  a4 {[%clk 0:02:01]} 36. Rda1 {[%clk 0:00:45]}  Ra5 {[%clk 0:02:02]} 37. f4 {[%clk 0:00:39]}  Rb4 {[%clk 0:02:01]} 38. f3 {[%clk 0:00:37]}  c5 {[%clk 0:01:59]} 39. Rd1 {[%clk 0:00:34]}  Ra6 {[%clk 0:01:58]} 40. Rad3 {[%clk 0:00:26]}  a3 {[%clk 0:01:52]} 41. Ra1 {[%clk 0:00:26]}  a2 {[%clk 0:01:50]} 42. Rd2 {[%clk 0:00:26]}  Rba4 {[%clk 0:01:49]} 43. Kf2 {[%clk 0:00:20]}  c4 {[%clk 0:01:48]} 44. Ke3 {[%clk 0:00:19]}  c3 {[%clk 0:01:46]} 45. Rc2 {[%clk 0:00:20]}  d5 {[%clk 0:01:45]} 46. f5 {[%clk 0:00:18]}  gxf5 {[%clk 0:01:45]} 47. Kd3 {[%clk 0:00:18]}  d4 {[%clk 0:01:45]} 48. f4 {[%clk 0:00:18]}  Re6 {[%clk 0:01:44]} 49. Rcxa2 {[%clk 0:00:15]}  Re3+ {[%clk 0:01:31]} 50. Kc2 {[%clk 0:00:15]}  Re2+ {[%clk 0:01:30]} 51. Kd3 {[%clk 0:00:10]}  Raxa2 {[%clk 0:01:31]} 52. Rxa2 {[%clk 0:00:05]}  Rxa2 {[%clk 0:01:31]} 53. Kxd4 {[%clk 0:00:05]}  c2 {[%clk 0:01:31]} 0-1


[Site "https://www.chess.com"]

[Event "Titled Tuesday Blitz June 28 Early 2022"]
[White "Preotu, Razvan"]
[Black "Aggelis, Nikolaos"]
[WhiteFideId "2613280"]
[BlackFideId "4213220"]
[WhiteElo "2407"]
[BlackElo "2154"]
[Result "0-1"]
[Round "11"]
[TimeControl "180+1"]
[Date "2022.06.28"]
[WhiteClock "0:00:02"]
[BlackClock "0:00:11"]

1. e4 {[%clk 0:03:00]}  c5 {[%clk 0:02:52]} 2. Nf3 {[%clk 0:03:00]}  e6 {[%clk 0:02:51]} 3. c3 {[%clk 0:03:00]}  d5 {[%clk 0:02:51]} 4. exd5 {[%clk 0:03:01]}  exd5 {[%clk 0:02:51]} 5. d4 {[%clk 0:03:02]}  Nf6 {[%clk 0:02:50]} 6. Bb5+ {[%clk 0:03:01]}  Nc6 {[%clk 0:02:36]} 7. O-O {[%clk 0:03:01]}  c4 {[%clk 0:02:36]} 8. b3 {[%clk 0:02:50]}  cxb3 {[%clk 0:02:35]} 9. axb3 {[%clk 0:02:50]}  Be7 {[%clk 0:02:36]} 10. Bd3 {[%clk 0:02:28]}  O-O {[%clk 0:02:34]} 11. h3 {[%clk 0:02:28]}  a6 {[%clk 0:02:33]} 12. Re1 {[%clk 0:02:28]}  Re8 {[%clk 0:02:32]} 13. Ra2 {[%clk 0:02:25]}  h6 {[%clk 0:02:29]} 14. Rae2 {[%clk 0:02:25]}  Be6 {[%clk 0:02:27]} 15. Nbd2 {[%clk 0:02:17]}  Rc8 {[%clk 0:02:26]} 16. Nf1 {[%clk 0:02:14]}  Qa5 {[%clk 0:02:19]} 17. Bd2 {[%clk 0:02:12]}  Qb6 {[%clk 0:02:10]} 18. Ng3 {[%clk 0:02:07]}  Na5 {[%clk 0:02:05]} 19. Bc2 {[%clk 0:02:08]}  Bd6 {[%clk 0:01:54]} 20. Ne5 {[%clk 0:02:07]}  Nc6 {[%clk 0:01:38]} 21. f4 {[%clk 0:02:06]}  Qc7 {[%clk 0:01:31]} 22. Bb1 {[%clk 0:01:32]}  b5 {[%clk 0:01:25]} 23. f5 {[%clk 0:00:51]}  Bd7 {[%clk 0:01:21]} 24. Bf4 {[%clk 0:00:52]}  b4 {[%clk 0:00:53]} 25. cxb4 {[%clk 0:00:47]}  Nxb4 {[%clk 0:00:45]} 26. Qd2 {[%clk 0:00:40]}  Bb5 {[%clk 0:00:30]} 27. Rf2 {[%clk 0:00:27]}  Qc3 {[%clk 0:00:28]} 28. Qxc3 {[%clk 0:00:06]}  Rxc3 {[%clk 0:00:27]} 29. Rf3 {[%clk 0:00:03]}  Rxf3 {[%clk 0:00:26]} 30. gxf3 {[%clk 0:00:04]}  Nd7 {[%clk 0:00:21]} 31. Kf2 {[%clk 0:00:03]}  f6 {[%clk 0:00:18]} 32. Nxd7 {[%clk 0:00:02]}  Rxe1 {[%clk 0:00:18]} 33. Kxe1 {[%clk 0:00:03]}  Bxf4 {[%clk 0:00:18]} 34. Nh5 {[%clk 0:00:03]}  Be3 {[%clk 0:00:13]} 35. Nc5 {[%clk 0:00:02]}  Bxd4 {[%clk 0:00:13]} 36. Ne6 {[%clk 0:00:03]}  Bc3+ {[%clk 0:00:12]} 37. Kf2 {[%clk 0:00:03]}  Nd3+ {[%clk 0:00:11]} 38. Ke3 {[%clk 0:00:02]}  Nc1 {[%clk 0:00:11]} 0-1


[Site "https://www.chess.com"]

[Event "Titled Tuesday Blitz June 28 Early 2022"]
[White "Reprintsev, Alexander"]
[Black "Averjanov, Alexey"]
[WhiteFideId "14100541"]
[BlackFideId "14109867"]
[WhiteElo "2108"]
[BlackElo "2685"]
[Result "0-1"]
[Round "11"]
[TimeControl "180+1"]
[Date "2022.06.28"]
[WhiteClock "0:00:02"]
[BlackClock "0:00:20"]

1. e4 {[%clk 0:02:47]}  c6 {[%clk 0:02:59]} 2. Nc3 {[%clk 0:02:43]}  d5 {[%clk 0:03:00]} 3. Nf3 {[%clk 0:02:43]}  Bg4 {[%clk 0:03:00]} 4. h3 {[%clk 0:02:42]}  Bxf3 {[%clk 0:02:59]} 5. Qxf3 {[%clk 0:02:42]}  e6 {[%clk 0:03:00]} 6. b3 {[%clk 0:02:41]}  Nf6 {[%clk 0:02:59]} 7. e5 {[%clk 0:02:41]}  Nfd7 {[%clk 0:02:58]} 8. Qg3 {[%clk 0:02:41]}  g6 {[%clk 0:02:58]} 9. h4 {[%clk 0:02:40]}  Bg7 {[%clk 0:02:57]} 10. f4 {[%clk 0:02:39]}  h5 {[%clk 0:02:57]} 11. Bb2 {[%clk 0:02:38]}  c5 {[%clk 0:02:57]} 12. O-O-O {[%clk 0:02:26]}  Nc6 {[%clk 0:02:56]} 13. Qf2 {[%clk 0:02:21]}  a6 {[%clk 0:02:53]} 14. Be2 {[%clk 0:02:19]}  Nd4 {[%clk 0:02:50]} 15. Rdg1 {[%clk 0:02:18]}  Nxe2+ {[%clk 0:02:49]} 16. Nxe2 {[%clk 0:02:14]}  Qe7 {[%clk 0:02:45]} 17. g4 {[%clk 0:02:13]}  hxg4 {[%clk 0:02:43]} 18. Rxg4 {[%clk 0:02:13]}  Rh5 {[%clk 0:02:43]} 19. Ng3 {[%clk 0:02:12]}  Rh6 {[%clk 0:02:36]} 20. h5 {[%clk 0:02:11]}  O-O-O {[%clk 0:02:33]} 21. hxg6 {[%clk 0:02:09]}  Rxg6 {[%clk 0:02:34]} 22. Rxg6 {[%clk 0:02:07]}  fxg6 {[%clk 0:02:34]} 23. Rh7 {[%clk 0:02:05]}  Rh8 {[%clk 0:02:30]} 24. Qh2 {[%clk 0:02:04]}  Qf8 {[%clk 0:02:28]} 25. c4 {[%clk 0:01:30]}  Nb6 {[%clk 0:02:17]} 26. Qh3 {[%clk 0:01:09]}  Rxh7 {[%clk 0:02:11]} 27. Qxh7 {[%clk 0:01:08]}  Qxf4 {[%clk 0:02:10]} 28. Qxg6 {[%clk 0:01:02]}  Bh6 {[%clk 0:01:50]} 29. Qxe6+ {[%clk 0:00:50]}  Nd7 {[%clk 0:01:49]} 30. Qg8+ {[%clk 0:00:32]}  Kc7 {[%clk 0:01:42]} 31. Qxd5 {[%clk 0:00:25]}  Qxg3 {[%clk 0:01:37]} 32. Qd6+ {[%clk 0:00:25]}  Kc8 {[%clk 0:01:34]} 33. Qxh6 {[%clk 0:00:26]}  Qe1+ {[%clk 0:01:22]} 34. Kc2 {[%clk 0:00:24]}  Qe4+ {[%clk 0:01:22]} 35. d3 {[%clk 0:00:24]}  Qe2+ {[%clk 0:01:16]} 36. Qd2 {[%clk 0:00:23]}  Qf3 {[%clk 0:01:10]} 37. Qh2 {[%clk 0:00:21]}  Nf8 {[%clk 0:01:06]} 38. Bc3 {[%clk 0:00:17]}  Ne6 {[%clk 0:01:03]} 39. Qd2 {[%clk 0:00:16]}  Kd7 {[%clk 0:01:01]} 40. Kb2 {[%clk 0:00:16]}  b5 {[%clk 0:01:01]} 41. cxb5 {[%clk 0:00:15]}  axb5 {[%clk 0:01:01]} 42. a3 {[%clk 0:00:14]}  Nf4 {[%clk 0:00:55]} 43. Kc2 {[%clk 0:00:12]}  Nd5 {[%clk 0:00:52]} 44. b4 {[%clk 0:00:12]}  Ne3+ {[%clk 0:00:44]} 45. Kb3 {[%clk 0:00:09]}  Kc6 {[%clk 0:00:38]} 46. bxc5 {[%clk 0:00:08]}  Kxc5 {[%clk 0:00:37]} 47. Bb4+ {[%clk 0:00:06]}  Kd5 {[%clk 0:00:37]} 48. Qc3 {[%clk 0:00:06]}  Qd1+ {[%clk 0:00:33]} 49. Kb2 {[%clk 0:00:06]}  Ke6 {[%clk 0:00:28]} 50. Qc6+ {[%clk 0:00:05]}  Kf5 {[%clk 0:00:27]} 51. Qf6+ {[%clk 0:00:04]}  Kg4 {[%clk 0:00:28]} 52. Qg6+ {[%clk 0:00:03]}  Kf3 {[%clk 0:00:27]} 53. d4 {[%clk 0:00:03]}  Nc4+ {[%clk 0:00:23]} 54. Ka2 {[%clk 0:00:02]}  Qe2+ {[%clk 0:00:20]} 0-1


[Site "https://www.chess.com"]

[Event "Titled Tuesday Blitz June 28 Early 2022"]
[White "Rios Escobar, Adan"]
[Black "Gallegos Diaz, Carlos Alberto"]
[WhiteFideId "3403645"]
[BlackFideId "3900886"]
[WhiteElo "2448"]
[BlackElo "2362"]
[Result "1-0"]
[Round "11"]
[TimeControl "180+1"]
[Date "2022.06.28"]
[WhiteClock "0:02:31"]
[BlackClock "0:01:42"]

1. d4 {[%clk 0:02:55]}  Nf6 {[%clk 0:02:58]} 2. g3 {[%clk 0:02:55]}  d6 {[%clk 0:02:58]} 3. Bg2 {[%clk 0:02:55]}  e5 {[%clk 0:02:58]} 4. e4 {[%clk 0:02:53]}  Be7 {[%clk 0:02:57]} 5. Ne2 {[%clk 0:02:53]}  O-O {[%clk 0:02:56]} 6. O-O {[%clk 0:02:54]}  c6 {[%clk 0:02:56]} 7. a4 {[%clk 0:02:53]}  Nbd7 {[%clk 0:02:56]} 8. Nbc3 {[%clk 0:02:54]}  h6 {[%clk 0:02:55]} 9. h3 {[%clk 0:02:54]}  Re8 {[%clk 0:02:55]} 10. Be3 {[%clk 0:02:55]}  Qc7 {[%clk 0:02:55]} 11. g4 {[%clk 0:02:53]}  Bf8 {[%clk 0:02:55]} 12. Ng3 {[%clk 0:02:53]}  b6 {[%clk 0:02:50]} 13. Qd2 {[%clk 0:02:51]}  Ba6 {[%clk 0:02:47]} 14. Rfe1 {[%clk 0:02:51]}  Rad8 {[%clk 0:02:35]} 15. Rad1 {[%clk 0:02:51]}  exd4 {[%clk 0:02:34]} 16. Bxd4 {[%clk 0:02:51]}  Ne5 {[%clk 0:02:34]} 17. b3 {[%clk 0:02:49]}  c5 {[%clk 0:02:27]} 18. Be3 {[%clk 0:02:49]}  Nc6 {[%clk 0:02:20]} 19. Nf5 {[%clk 0:02:46]}  Nb4 {[%clk 0:02:13]} 20. Bf4 {[%clk 0:02:40]}  Re6 {[%clk 0:02:07]} 21. Nb5 {[%clk 0:02:34]}  Bxb5 {[%clk 0:02:05]} 22. axb5 {[%clk 0:02:35]}  Qd7 {[%clk 0:01:45]} 23. c3 {[%clk 0:02:32]}  Qxb5 {[%clk 0:01:43]} 24. cxb4 {[%clk 0:02:33]}  cxb4 {[%clk 0:01:42]} 25. Nd4 {[%clk 0:02:31]} 1-0


[Site "https://www.chess.com"]

[Event "Titled Tuesday Blitz June 28 Early 2022"]
[White "Rom, Jasper"]
[Black "Pinheiro, Iung Alicio de O."]
[WhiteFideId "2023733"]
[BlackFideId "2104350"]
[WhiteElo "2233"]
[BlackElo "2283"]
[Result "0-1"]
[Round "11"]
[TimeControl "180+1"]
[Date "2022.06.28"]
[WhiteClock "0:00:05"]
[BlackClock "0:01:08"]

1. e4 {[%clk 0:03:00]}  c5 {[%clk 0:02:59]} 2. Nc3 {[%clk 0:03:00]}  a6 {[%clk 0:02:56]} 3. g3 {[%clk 0:02:58]}  b5 {[%clk 0:02:56]} 4. Bg2 {[%clk 0:02:59]}  Bb7 {[%clk 0:02:56]} 5. Nh3 {[%clk 0:02:59]}  e6 {[%clk 0:02:56]} 6. O-O {[%clk 0:02:58]}  Nf6 {[%clk 0:02:51]} 7. d3 {[%clk 0:02:57]}  d5 {[%clk 0:02:47]} 8. e5 {[%clk 0:02:45]}  Ng8 {[%clk 0:02:40]} 9. f4 {[%clk 0:02:45]}  Ne7 {[%clk 0:02:39]} 10. g4 {[%clk 0:01:59]}  h5 {[%clk 0:02:31]} 11. gxh5 {[%clk 0:01:48]}  Nf5 {[%clk 0:02:28]} 12. Qg4 {[%clk 0:01:31]}  Nc6 {[%clk 0:02:25]} 13. Ne2 {[%clk 0:01:30]}  Nb4 {[%clk 0:02:23]} 14. Ng3 {[%clk 0:01:17]}  Nxc2 {[%clk 0:02:22]} 15. Rb1 {[%clk 0:01:09]}  Nce3 {[%clk 0:02:19]} 16. Qe2 {[%clk 0:01:00]}  Nxg3 {[%clk 0:02:09]} 17. hxg3 {[%clk 0:00:58]}  Nxf1 {[%clk 0:02:10]} 18. Bxf1 {[%clk 0:00:50]}  d4 {[%clk 0:02:06]} 19. Nf2 {[%clk 0:00:48]}  c4 {[%clk 0:01:59]} 20. Ne4 {[%clk 0:00:26]}  Rc8 {[%clk 0:01:48]} 21. Bd2 {[%clk 0:00:12]}  c3 {[%clk 0:01:35]} 22. bxc3 {[%clk 0:00:11]}  dxc3 {[%clk 0:01:36]} 23. Be3 {[%clk 0:00:10]}  Bxe4 {[%clk 0:01:27]} 24. dxe4 {[%clk 0:00:09]}  Bc5 {[%clk 0:01:28]} 25. Rc1 {[%clk 0:00:05]}  Qd2 {[%clk 0:01:08]} 0-1


[Site "https://www.chess.com"]